bitfinex/quotes_BTCUSD_20250213
["timestamp","ask_amount","ask_price","bid_price","bid_amount"]
[1739462791453,0.208481,95932.0,95912.0,0.15]
[1739462791634,0.156381,95920.0,95917.0,0.08323666]
[1739462791842,0.156381,95920.0,95919.0,0.15]
[1739462792056,0.156399,95908.0,95889.0,0.15643]
[1739462792260,0.00684775,95920.0,95907.0,0.18574031]
[1739462792467,0.156393,95912.0,95909.0,0.15]
[1739462792967,0.156396,95910.0,95909.0,0.15]
[1739462793186,0.156416,95898.0,95871.0,0.08323666]
[1739462793439,0.0764,95928.0,95897.0,0.18574031]
[1739462793637,0.208491,95927.0,95899.0,0.15]
[1739462793851,0.156386,95917.0,95901.0,0.15]
[1739462794111,0.0764,95928.0,95902.0,0.10250365]
[1739462794318,0.0482,95930.0,95919.0,0.002]
[1739462794523,0.00013206,95928.0,95920.0,0.31100865]
[1739462794732,0.00013206,95928.0,95927.0,0.156368]
[1739462794941,0.00013206,95928.0,95927.0,0.25887165]
[1739462795354,0.00113206,95928.0,95927.0,0.25887165]
[1739462795555,0.00113206,95928.0,95911.0,0.08323666]
[1739462795762,0.00013206,95928.0,95927.0,0.156368]
[1739462795970,0.00013206,95928.0,95927.0,0.26287165]
[1739462796177,0.00013206,95928.0,95927.0,0.41287165]
[1739462796357,0.00013206,95928.0,95927.0,0.41087165]
[1739462796569,0.00013206,95928.0,95927.0,0.41287165]
[1739462797167,0.00013206,95928.0,95927.0,0.41087165]
[1739462797389,0.00013206,95928.0,95927.0,0.41287165]
[1739462797960,0.00013206,95928.0,95927.0,0.41087165]
[1739462798153,0.00013206,95928.0,95927.0,0.41587165]
[1739462798357,0.00013206,95928.0,95927.0,0.41387165]
[1739462798760,0.00013206,95928.0,95927.0,0.41787165]
[1739462799139,0.00013206,95928.0,95927.0,0.41387165]
[1739462799343,0.00013206,95928.0,95927.0,0.26250365]
[1739462799758,0.00691987,95928.0,95927.0,0.28193658]
[1739462800024,0.00013206,95928.0,95927.0,0.28193658]
[1739462800676,0.00013206,95928.0,95927.0,0.43830458]
[1739462800941,0.00013206,95928.0,95927.0,0.28193658]
[1739462801653,0.00691987,95928.0,95927.0,0.28193658]
[1739462801861,0.00013206,95928.0,95927.0,0.43830458]
[1739462803032,0.00013206,95928.0,95927.0,0.28193658]
[1739462803243,0.15649906,95928.0,95927.0,0.13193658]
[1739462803730,0.16340601,95928.0,95927.0,0.02943293]
[1739462803960,0.00703901,95928.0,95927.0,0.005]
[1739462804215,0.16340601,95928.0,95927.0,0.005]
[1739462804454,0.16340601,95928.0,95927.0,0.007]
[1739462804716,0.00703901,95928.0,95924.0,0.0001064]
[1739462804926,0.00703901,95928.0,95927.0,0.25250365]
[1739462805132,0.00703901,95928.0,95927.0,0.25850365]
[1739462805341,0.00013206,95928.0,95927.0,0.25650365]
[1739462805560,0.16423249,95928.0,95927.0,0.25950365]
[1739462805773,0.15649906,95928.0,95927.0,0.25950365]
[1739462805979,0.16423202,95928.0,95927.0,0.25650365]
[1739462806415,0.16423202,95928.0,95927.0,0.15]
[1739462806830,0.00786502,95928.0,95927.0,0.306368]
[1739462807036,0.00786502,95928.0,95927.0,0.40887165]
[1739462807462,0.00786502,95928.0,95927.0,0.44130736]
[1739462807463,0.00013206,95928.0,95927.0,0.46430736]
[1739462807714,0.00013206,95928.0,95927.0,0.48153908]
[1739462807939,0.00013206,95928.0,95927.0,0.48453908]
[1739462808157,0.00013206,95928.0,95927.0,0.48053908]
[1739462808363,0.00013206,95928.0,95927.0,0.48553908]
[1739462808568,0.00013206,95928.0,95927.0,0.48253908]
[1739462808813,0.00113206,95928.0,95927.0,0.50902408]
[1739462809660,0.00113206,95928.0,95927.0,0.50402408]
[1739462809896,0.00113206,95928.0,95927.0,0.46779236]
[1739462810142,0.00113206,95928.0,95927.0,0.49779236]
[1739462811985,0.00113206,95928.0,95927.0,0.47479236]
[1739462813214,0.00113206,95928.0,95927.0,0.44235665]
[1739462813376,0.00135551,95928.0,95927.0,0.46782389]
[1739462814248,0.00035551,95928.0,95927.0,0.46782389]
[1739462814604,0.00035551,95928.0,95927.0,0.47482389]
[1739462814605,0.00135551,95928.0,95927.0,0.47482389]
[1739462814782,0.00135551,95928.0,95927.0,0.46782389]
[1739462814992,0.00135551,95928.0,95927.0,0.49082389]
[1739462815331,0.00235551,95928.0,95927.0,0.49782389]
[1739462815541,0.00135551,95928.0,95927.0,0.49082389]
[1739462815740,0.00135551,95928.0,95927.0,0.31845589]
[1739462815741,0.00235551,95928.0,95927.0,0.31845589]
[1739462815900,0.00135551,95928.0,95927.0,0.27898865]
[1739462816101,0.00135551,95928.0,95927.0,0.27198865]
[1739462816557,0.00135551,95928.0,95927.0,0.12898865]
[1739462816963,0.00135551,95928.0,95927.0,0.12198865]
[1739462817186,0.00760971,95928.0,95927.0,0.12198865]
[1739462817385,0.00135551,95928.0,95927.0,0.12198865]
[1739462817583,0.00917326,95928.0,95927.0,0.27198865]
[1739462817790,0.00135551,95928.0,95927.0,0.27898865]
[1739462817994,0.01017326,95928.0,95927.0,0.28598865]
[1739462818197,0.00035551,95928.0,95927.0,0.43535665]
[1739462818668,0.00135551,95928.0,95927.0,0.44235665]
[1739462818873,0.00135551,95928.0,95927.0,0.45835665]
[1739462819048,0.00135551,95928.0,95927.0,0.4908274]
[1739462819271,0.00235551,95928.0,95927.0,0.4908274]
[1739462819475,0.00035551,95928.0,95927.0,0.4838274]
[1739462819667,0.00035551,95928.0,95927.0,0.4978274]
[1739462819813,0.00135551,95928.0,95927.0,0.4978274]
[1739462819991,0.00135551,95928.0,95927.0,0.4678274]
[1739462820196,0.00135551,95928.0,95927.0,0.43535665]
[1739462820445,0.00135551,95928.0,95927.0,0.44235665]
[1739462820859,0.00035551,95928.0,95927.0,0.27198865]
[1739462821180,0.00035551,95928.0,95927.0,0.44235665]
[1739462821392,0.0076085,95928.0,95927.0,0.44235665]
[1739462821596,0.00135551,95928.0,95927.0,0.43535665]
[1739462821931,0.00235551,95928.0,95927.0,0.44235665]
[1739462822134,0.00035551,95928.0,95927.0,0.43535665]
[1739462822337,0.00035551,95928.0,95927.0,0.42835665]
[1739462822511,0.00135551,95928.0,95927.0,0.43535665]
[1739462822716,0.00135551,95928.0,95927.0,0.27898865]
[1739462822717,0.15772251,95928.0,95927.0,0.27898865]
[1739462822920,0.16397177,95928.0,95927.0,0.27898865]
[1739462823128,0.16397177,95928.0,95927.0,0.27198865]
[1739462823338,0.16553408,95928.0,95927.0,0.27198865]
[1739462823489,0.16553408,95928.0,95927.0,0.27898865]
[1739462823929,0.16553408,95928.0,95927.0,0.27198865]
[1739462824417,0.16553408,95928.0,95927.0,0.005]
[1739462824623,0.16653408,95928.0,95927.0,0.012]
[1739462824832,0.16553408,95928.0,95927.0,0.005]
[1739462825048,0.00816708,95928.0,95927.0,0.41387165]
[1739462825273,0.16453408,95928.0,95927.0,0.16]
[1739462825482,0.16453408,95928.0,95927.0,0.15]
[1739462825893,0.16453408,95928.0,95927.0,0.16]
[1739462826103,0.16453408,95928.0,95927.0,0.155]
[1739462826311,0.16453408,95928.0,95927.0,0.005]
[1739462826569,0.24223408,95928.0,95927.0,0.01]
[1739462826772,0.24223408,95928.0,95927.0,0.005]
[1739462826953,0.24223408,95928.0,95927.0,0.01]
[1739462827819,0.24223408,95928.0,95927.0,0.005]
[1739462828022,0.24223408,95928.0,95927.0,0.01]
[1739462828231,0.24223408,95928.0,95927.0,0.005]
[1739462828441,0.24223408,95928.0,95924.0,0.0001064]
[1739462828442,0.156372,95925.0,95924.0,4e-07]
[1739462828648,0.283106,95904.0,95903.0,0.09335953]
[1739462829296,0.3933486,95904.0,95903.0,5.3e-07]
[1739462829501,0.4163486,95904.0,95903.0,5.3e-07]
[1739462829707,0.236052,95876.0,95875.0,0.08323666]
[1739462830025,0.156468,95866.0,95865.0,0.08323666]
[1739462830436,0.156468,95866.0,95855.0,0.08323666]
[1739462830437,0.156484,95856.0,95855.0,0.08323666]
[1739462830648,0.156484,95856.0,95855.0,0.18574031]
[1739462830849,0.16395895,95856.0,95855.0,0.10250365]
[1739462831115,0.16395895,95856.0,95855.0,0.10294418]
[1739462831337,0.16395895,95856.0,95855.0,0.25294418]
[1739462831581,0.16395895,95856.0,95855.0,0.00044053]
[1739462831978,0.16495895,95856.0,95855.0,0.00644053]
[1739462832110,0.16495895,95856.0,95855.0,0.00044053]
[1739462832313,0.24695895,95856.0,95855.0,0.00044053]
[1739462832575,0.24695895,95856.0,95855.0,0.00544053]
[1739462832726,0.24695895,95856.0,95855.0,0.01044053]
[1739462833135,0.24695895,95856.0,95855.0,0.00544053]
[1739462833722,0.24695895,95856.0,95855.0,0.01044053]
[1739462834106,0.29675895,95856.0,95855.0,0.01044053]
[1739462834531,0.29575895,95856.0,95855.0,0.00544053]
[1739462834690,0.29575895,95856.0,95855.0,0.00044053]
[1739462835307,0.14247085,95856.0,95855.0,0.00044053]
[1739462835942,0.14547085,95856.0,95855.0,0.00044053]
[1739462836428,0.14247085,95856.0,95855.0,0.00044053]
[1739462836861,0.14347085,95856.0,95855.0,0.00044053]
[1739462837281,0.14247085,95856.0,95855.0,0.00044053]
[1739462837704,0.29895485,95856.0,95855.0,0.00044053]
[1739462838745,0.01067085,95856.0,95855.0,0.40943018]
[1739462838936,0.00967085,95856.0,95855.0,0.40943018]
[1739462839168,0.0773,95880.0,95870.0,0.15]
[1739462839375,0.156456,95873.0,95872.0,0.15]
[1739462839585,0.00933285,95879.0,95872.0,0.25250365]
[1739462839791,0.156447,95879.0,95873.0,0.10250365]
[1739462839971,0.156455,95874.0,95873.0,0.10250365]
[1739462840387,0.156453,95875.0,95873.0,0.10250365]
[1739462840596,0.00933285,95874.0,95873.0,0.10250365]
[1739462841029,0.208603,95876.0,95873.0,0.10250365]
[1739462841232,0.16578785,95874.0,95873.0,0.10250365]
[1739462841441,0.156456,95873.0,95872.0,0.001]
[1739462842059,0.16586933,95873.0,95872.0,0.001]
[1739462843913,0.16586933,95873.0,95872.0,0.003]
[1739462844994,0.16586933,95873.0,95872.0,0.002]
[1739462846070,0.156484,95856.0,95855.0,0.00054693]
[1739462846443,0.16588521,95856.0,95855.0,0.00054693]
[1739462846693,0.00940121,95856.0,95855.0,0.25305058]
[1739462847041,0.208596,95879.0,95856.0,0.15]
[1739462847268,0.208596,95879.0,95858.0,0.15]
[1739462847480,0.156475,95862.0,95859.0,0.10250365]
[1739462847692,0.00936259,95878.0,95860.0,0.15]
[1739462847897,0.2086,95877.0,95862.0,0.15]
[1739462848099,0.156464,95869.0,95864.0,0.15]
[1739462848302,0.156464,95869.0,95864.0,0.25250365]
[1739462848512,0.208598,95878.0,95864.0,0.25250365]
[1739462848843,0.156467,95867.0,95864.0,0.25250365]
[1739462849102,0.156465,95868.0,95864.0,0.25250365]
[1739462849335,0.208598,95878.0,95864.0,0.25250365]
[1739462849511,0.15647,95865.0,95864.0,0.25250365]
[1739462849927,0.29678037,95880.0,95855.0,0.00054693]
[1739462849928,0.156484,95856.0,95855.0,0.00054693]
[1739462850127,0.21948037,95870.0,95856.0,0.15]
[1739462850277,0.21948037,95870.0,95858.0,0.15]
[1739462850477,0.15647,95865.0,95864.0,0.003]
[1739462850876,0.156476,95861.0,95860.0,0.15]
[1739462852494,0.156475,95862.0,95860.0,0.15]
[1739462852869,0.156471,95864.0,95860.0,0.15]
[1739462853041,0.05337854,95865.0,95864.0,0.002]
[1739462853249,0.208598,95878.0,95864.0,0.002]
[1739462853574,0.156468,95866.0,95860.0,0.15]
[1739462853771,0.208598,95878.0,95862.0,0.15]
[1739462854140,0.208575,95889.0,95863.0,0.10250365]
[1739462854351,0.00022366,95903.0,95864.0,0.15]
[1739462854352,0.078,95891.0,95864.0,0.15]
[1739462854558,0.078,95891.0,95866.0,0.15]
[1739462854772,0.208576,95888.0,95881.0,0.15]
[1739462854988,0.156442,95882.0,95881.0,0.15]
[1739462855191,0.156437,95886.0,95881.0,0.15]
[1739462855408,0.078,95891.0,95882.0,0.10250365]
[1739462855611,0.156431,95889.0,95882.0,0.10250365]
[1739462855964,0.00786114,95888.0,95882.0,0.25894565]
[1739462857023,0.00786114,95888.0,95882.0,0.10250365]
[1739462857247,0.156439,95884.0,95882.0,0.10250365]
[1739462857438,0.15644,95884.0,95882.0,0.10250365]
[1739462857565,0.16430114,95883.0,95882.0,0.10250365]
[1739462857765,0.00786114,95883.0,95882.0,0.10350365]
[1739462857966,0.00786114,95883.0,95882.0,0.25994565]
[1739462858226,0.156425,95892.0,95882.0,0.10350365]
[1739462858381,0.01280101,95893.0,95883.0,0.15]
[1739462858581,0.1208,95900.0,95883.0,0.15]
[1739462858582,0.00786114,95891.0,95884.0,0.10250365]
[1739462858807,0.1208,95900.0,95890.0,0.15]
[1739462859007,0.156429,95890.0,95888.0,0.15]
[1739462859230,0.15643,95889.0,95888.0,0.15]
[1739462859457,0.16429114,95889.0,95888.0,0.15]
[1739462859811,0.16429114,95889.0,95888.0,0.15013206]
[1739462860017,0.16429114,95889.0,95888.0,0.00013206]
[1739462861032,0.16429114,95889.0,95888.0,0.00113206]
[1739462866357,0.16429114,95889.0,95888.0,0.00013206]
[1739462866358,0.25069114,95889.0,95888.0,0.00013206]
[1739462866702,0.24869114,95889.0,95888.0,0.00013206]
[1739462867115,0.25369114,95889.0,95888.0,0.00013206]
[1739462867516,0.24569114,95889.0,95888.0,0.00013206]
[1739462867722,0.25369114,95889.0,95888.0,0.00013206]
[1739462869251,0.24869114,95889.0,95888.0,0.00013206]
[1739462869608,0.22331295,95889.0,95888.0,0.00013206]
[1739462869813,0.22031295,95889.0,95888.0,0.00013206]
[1739462870094,0.3258166,95889.0,95888.0,6e-08]
[1739462870305,0.3677166,95889.0,95888.0,6e-08]
[1739462870535,0.3727166,95889.0,95888.0,6e-08]
[1739462870737,0.3667166,95889.0,95888.0,6e-08]
[1739462870953,0.3617166,95889.0,95888.0,6e-08]
[1739462871146,0.3647166,95889.0,95888.0,6e-08]
[1739462871352,0.3697166,95889.0,95888.0,6e-08]
[1739462874617,0.26721295,95889.0,95888.0,6e-08]
[1739462874821,0.01461899,95889.0,95888.0,6e-08]
[1739462875201,0.01461899,95889.0,95888.0,0.40893571]
[1739462875473,0.17077263,95889.0,95888.0,0.25250371]
[1739462875725,0.16143,95889.0,95888.0,0.25250371]
[1739462875972,0.01037471,95889.0,95888.0,0.25250371]
[1739462876206,0.16980471,95889.0,95888.0,0.25250371]
[1739462876414,0.16980471,95889.0,95888.0,6e-08]
[1739462876660,0.16980471,95889.0,95888.0,0.00100006]
[1739462876935,0.16480471,95889.0,95888.0,0.00100006]
[1739462877340,0.28440471,95889.0,95888.0,6e-08]
[1739462878010,0.28840471,95889.0,95888.0,6e-08]
[1739462878445,0.29140471,95889.0,95888.0,6e-08]
[1739462878622,0.29162837,95889.0,95888.0,6e-08]
[1739462879591,0.28862837,95889.0,95888.0,6e-08]
[1739462879806,0.29162837,95889.0,95888.0,6e-08]
[1739462880404,0.39113202,95889.0,95888.0,6e-08]
[1739462880820,0.39413202,95889.0,95888.0,6e-08]
[1739462881224,0.39013202,95889.0,95888.0,6e-08]
[1739462881473,0.28762837,95889.0,95888.0,6e-08]
[1739462882668,0.28862837,95889.0,95888.0,6e-08]
[1739462883122,0.28762837,95889.0,95888.0,6e-08]
[1739462883354,0.29162837,95889.0,95888.0,6e-08]
[1739462883594,0.29462837,95889.0,95888.0,6e-08]
[1739462884311,0.38713202,95889.0,95888.0,6e-08]
[1739462885784,0.39013202,95889.0,95888.0,6e-08]
[1739462886391,0.39413202,95889.0,95888.0,6e-08]
[1739462887024,0.20732837,95889.0,95888.0,6e-08]
[1739462887367,0.21432837,95889.0,95888.0,6e-08]
[1739462889254,0.31383202,95889.0,95888.0,6e-08]
[1739462889402,0.31283202,95889.0,95888.0,6e-08]
[1739462889845,0.31683202,95889.0,95888.0,6e-08]
[1739462890243,0.31283202,95889.0,95888.0,6e-08]
[1739462890447,0.30983202,95889.0,95888.0,6e-08]
[1739462890651,0.31683202,95889.0,95888.0,6e-08]
[1739462891055,0.31683202,95889.0,95888.0,0.00010656]
[1739462892484,0.30983202,95889.0,95888.0,0.00010656]
[1739462892696,0.31283202,95889.0,95888.0,0.00010656]
[1739462892917,0.31683202,95889.0,95888.0,0.00010656]
[1739462893319,0.31983202,95889.0,95888.0,0.00010656]
[1739462893548,0.31583202,95889.0,95888.0,0.00010656]
[1739462893683,0.31983202,95889.0,95888.0,0.00010656]
[1739462894275,0.31983202,95889.0,95865.0,0.0001065]
[1739462894276,0.156468,95866.0,95865.0,0.0001065]
[1739462894488,0.16192331,95866.0,95865.0,0.0001065]
[1739462894906,0.17155539,95866.0,95865.0,0.0001065]
[1739462895623,0.17155539,95866.0,95865.0,0.0021065]
[1739462895870,0.17155539,95866.0,95865.0,0.0001065]
[1739462896495,0.17455539,95866.0,95865.0,0.0001065]
[1739462896731,0.28205904,95866.0,95865.0,0.0001065]
[1739462896935,0.32875904,95866.0,95865.0,0.0001065]
[1739462898402,0.17955539,95866.0,95865.0,0.0001065]
[1739462898781,0.17155539,95866.0,95865.0,0.0001065]
[1739462899150,0.17955539,95866.0,95865.0,0.0001065]
[1739462899724,0.17155539,95866.0,95865.0,0.0001065]
[1739462899917,0.17455539,95866.0,95865.0,0.0001065]
[1739462900124,0.17955539,95866.0,95865.0,0.0001065]
[1739462900879,0.17455539,95866.0,95865.0,0.0001065]
[1739462901093,0.27705904,95866.0,95865.0,0.0001065]
[1739462901923,0.17155539,95866.0,95865.0,0.0001065]
[1739462902334,0.17455539,95866.0,95865.0,0.0001065]
[1739462902505,0.17855539,95866.0,95865.0,0.0001065]
[1739462902912,0.17755539,95866.0,95865.0,0.0001065]
[1739462903113,0.17155539,95866.0,95865.0,0.0001065]
[1739462903307,0.17555539,95866.0,95865.0,0.0001065]
[1739462903709,0.17255539,95866.0,95865.0,0.0001065]
[1739462903915,0.17355539,95866.0,95865.0,0.0001065]
[1739462904204,0.17555539,95866.0,95865.0,0.0001065]
[1739462905490,0.17355539,95866.0,95865.0,0.0001065]
[1739462905697,0.17455539,95866.0,95865.0,0.0001065]
[1739462906106,0.17255539,95866.0,95865.0,0.0001065]
[1739462906242,0.17655539,95866.0,95865.0,0.0001065]
[1739462906640,0.156484,95856.0,95855.0,0.0001064]
[1739462906868,0.237084,95856.0,95855.0,0.0001064]
[1739462907070,0.156522,95833.0,95831.0,0.08334376]
[1739462907299,0.156522,95833.0,95832.0,0.08334316]
[1739462907644,0.16181855,95833.0,95832.0,0.0001065]
[1739462908048,0.24421855,95833.0,95832.0,0.00054703]
[1739462908380,0.26343474,95833.0,95832.0,0.00054703]
[1739462908604,0.27580901,95833.0,95832.0,0.00054703]
[1739462909058,0.28544109,95833.0,95832.0,0.00054703]
[1739462909225,0.20304109,95833.0,95832.0,0.00054703]
[1739462909430,0.20604109,95833.0,95832.0,0.00054703]
[1739462910495,0.1908249,95833.0,95832.0,0.00054703]
[1739462910903,0.1868249,95833.0,95832.0,0.00054703]
[1739462911251,0.1898249,95833.0,95832.0,0.00054703]
[1739462911742,0.1868249,95833.0,95832.0,0.00054703]
[1739462911982,0.1888249,95833.0,95832.0,0.00054703]
[1739462912236,0.1868249,95833.0,95832.0,0.00054703]
[1739462913245,0.1868249,95833.0,95832.0,0.00154703]
[1739462913447,0.1838249,95833.0,95832.0,0.00154703]
[1739462913853,0.1848249,95833.0,95832.0,0.00154703]
[1739462914677,0.1838249,95833.0,95832.0,0.00154703]
[1739462915131,0.1868249,95833.0,95832.0,0.00054703]
[1739462915517,0.1888249,95833.0,95832.0,0.00054703]
[1739462915911,0.1888249,95833.0,95832.0,0.00154703]
[1739462916273,0.1868249,95833.0,95832.0,0.00054703]
[1739462916477,0.1838249,95833.0,95832.0,0.00054703]
[1739462916807,0.1838249,95833.0,95832.0,0.00154703]
[1739462917767,0.17419282,95833.0,95832.0,0.00154703]
[1739462918793,0.17419282,95833.0,95832.0,0.00254703]
[1739462919196,0.17419282,95833.0,95832.0,0.00154703]
[1739462919847,0.18378657,95833.0,95832.0,0.00054703]
[1739462920917,0.18478657,95833.0,95832.0,0.00054703]
[1739462922810,0.18378657,95833.0,95832.0,0.00054703]
[1739462922959,0.18478657,95833.0,95832.0,0.00054703]
[1739462923513,0.18378657,95833.0,95832.0,0.00054703]
[1739462923731,0.18378657,95833.0,95832.0,0.00154703]
[1739462925057,0.18378657,95833.0,95832.0,0.00054703]
[1739462925465,0.18378657,95833.0,95832.0,0.00154703]
[1739462927119,0.18478657,95833.0,95832.0,0.00154703]
[1739462927388,0.18478657,95833.0,95832.0,0.00054703]
[1739462927530,0.18378657,95833.0,95832.0,0.00054703]
[1739462928887,0.18478657,95833.0,95832.0,0.00054703]
[1739462929471,0.18378657,95833.0,95832.0,0.00054703]
[1739462929821,0.00511221,95833.0,95832.0,0.00654703]
[1739462930037,0.208689,95836.0,95832.0,0.00354703]
[1739462930242,0.208689,95836.0,95832.0,0.00054703]
[1739462930388,0.156522,95833.0,95832.0,0.00054703]
[1739462930801,0.157522,95833.0,95832.0,0.00054703]
[1739462932409,0.16972346,95833.0,95832.0,0.00054703]
[1739462932610,0.16872346,95833.0,95832.0,0.00154703]
[1739462932739,0.16872346,95833.0,95832.0,0.00054703]
[1739462933544,0.16972346,95833.0,95832.0,0.00054703]
[1739462933960,0.16872346,95833.0,95832.0,0.00054703]
[1739462934520,0.17272346,95833.0,95832.0,0.00054703]
[1739462934753,0.19199195,95833.0,95832.0,0.00054703]
[1739462935286,0.19399195,95833.0,95832.0,0.00054703]
[1739462935479,0.18999195,95833.0,95832.0,0.00054703]
[1739462936009,0.19199195,95833.0,95832.0,0.00054703]
[1739462936190,0.19299195,95833.0,95832.0,0.00054703]
[1739462937524,0.19199195,95833.0,95832.0,0.00054703]
[1739462937839,0.18799195,95833.0,95832.0,0.00054703]
[1739462938047,0.23469195,95833.0,95832.0,0.00054703]
[1739462938866,0.23769195,95833.0,95832.0,0.00054703]
[1739462939460,0.23469195,95833.0,95832.0,0.00054703]
[1739462939665,0.23569195,95833.0,95832.0,0.00054703]
[1739462940037,0.23469195,95833.0,95832.0,0.00054703]
[1739462940595,0.23769195,95833.0,95832.0,0.00054703]
[1739462940988,0.23969195,95833.0,95832.0,0.00054703]
[1739462941867,0.23669195,95833.0,95832.0,0.00054703]
[1739462942091,0.21842346,95833.0,95832.0,0.00054703]
[1739462942665,0.21742346,95833.0,95832.0,0.00054703]
[1739462943046,0.22042346,95833.0,95832.0,0.00054703]
[1739462943433,0.21742346,95833.0,95832.0,0.00054703]
[1739462943813,0.21842346,95833.0,95832.0,0.00054703]
[1739462944430,0.31892711,95833.0,95832.0,0.00054703]
[1739462944789,0.156523,95832.0,95831.0,0.0001071]
[1739462944918,0.25902665,95832.0,95831.0,0.00023926]
[1739462945342,0.25902665,95832.0,95815.0,0.04]
[1739462945343,0.156546,95818.0,95815.0,0.04]
[1739462945545,0.15655,95816.0,95815.0,0.00067108]
[1739462946157,0.30545365,95816.0,95815.0,0.00067108]
[1739462946378,0.45454265,95816.0,95815.0,8e-08]
[1739462946618,0.156574,95801.0,95792.0,0.0001065]
[1739462948394,0.16821308,95801.0,95792.0,0.0001065]
[1739462948791,0.00963908,95801.0,95792.0,0.0001065]
[1739462948972,0.02887278,95801.0,95794.0,0.0823]
[1739462949176,0.02887278,95801.0,95800.0,0.41011965]
[1739462949373,0.02887278,95801.0,95800.0,0.40911965]
[1739462949819,0.03087278,95801.0,95800.0,0.40911965]
[1739462950363,0.01163908,95801.0,95800.0,0.40911965]
[1739462950747,0.002,95801.0,95800.0,0.40911965]
[1739462950951,0.01220146,95833.0,95805.0,0.0814]
[1739462951155,0.00013194,95827.0,95807.0,0.10250365]
[1739462951353,0.156543,95820.0,95818.0,0.15]
[1739462951565,0.156562,95809.0,95807.0,0.10250365]
[1739462951767,0.156574,95801.0,95800.0,4e-05]
[1739462951970,0.156574,95801.0,95800.0,0.10654365]
[1739462952183,0.156573,95802.0,95800.0,4e-05]
[1739462952399,0.00962426,95808.0,95800.0,4e-05]
[1739462952593,0.16875314,95802.0,95800.0,4e-05]
[1739462952862,0.156574,95802.0,95800.0,4e-05]
[1739462953000,0.01062426,95801.0,95800.0,0.00704]
[1739462954006,0.001,95801.0,95800.0,0.00704]
[1739462954618,0.16892428,95802.0,95800.0,0.00404]
[1739462955038,0.16892428,95802.0,95800.0,0.00604]
[1739462955237,0.001,95801.0,95800.0,0.01304]
[1739462955451,0.16892428,95802.0,95800.0,4e-05]
[1739462955688,0.16892428,95802.0,95800.0,0.00704]
[1739462955899,0.156574,95801.0,95800.0,0.01304]
[1739462956078,0.156574,95801.0,95800.0,0.00704]
[1739462956479,0.157574,95801.0,95800.0,0.00704]
[1739462956930,0.16719108,95801.0,95800.0,0.00704]
[1739462957937,0.16619108,95801.0,95800.0,0.00604]
[1739462958340,0.16619108,95801.0,95800.0,4e-05]
[1739462958548,0.16719108,95801.0,95800.0,0.00704]
[1739462958786,0.21349108,95801.0,95800.0,0.01204]
[1739462959016,0.21249108,95801.0,95800.0,0.00504]
[1739462959430,0.21249108,95801.0,95800.0,0.01004]
[1739462959968,0.21249108,95801.0,95800.0,0.00504]
[1739462960613,0.21249108,95801.0,95800.0,0.0051465]
[1739462960768,0.21249108,95801.0,95800.0,0.0001465]
[1739462961774,0.24156122,95801.0,95800.0,0.0001465]
[1739462961985,0.23756122,95801.0,95800.0,0.0001465]
[1739462962177,0.23356122,95801.0,95800.0,0.0001465]
[1739462962381,0.23656122,95801.0,95800.0,0.0011465]
[1739462962728,0.23856122,95801.0,95800.0,0.0011465]
[1739462962913,0.23556122,95801.0,95800.0,0.0001465]
[1739462963258,0.23956122,95801.0,95800.0,0.0001465]
[1739462963466,0.23956122,95801.0,95792.0,0.0001065]
[1739462963467,0.236487,95793.0,95792.0,0.0001065]
[1739462964865,0.236487,95793.0,95790.0,0.000304]
[1739462964866,0.15659,95791.0,95790.0,9.1e-05]
[1739462965089,0.156608,95780.0,95777.0,0.0001065]
[1739462965336,0.156608,95780.0,95779.0,0.00023873]
[1739462965548,0.203808,95780.0,95779.0,0.00023873]
[1739462965978,0.203808,95780.0,95779.0,7.3e-07]
[1739462966184,0.156618,95774.0,95773.0,0.0143815]
[1739462966395,0.25912165,95774.0,95773.0,0.0143815]
[1739462966597,0.28495489,95774.0,95773.0,0.0143815]
[1739462967241,0.28495489,95774.0,95751.0,0.0004]
[1739462967242,0.156654,95752.0,95751.0,0.0004]
[1739462967464,0.33615765,95752.0,95751.0,0.00083808]
[1739462967673,0.38937585,95752.0,95751.0,0.00083808]
[1739462967952,0.45506532,95752.0,95751.0,0.00083808]
[1739462968164,0.40184712,95752.0,95751.0,0.00083808]
[1739462968602,0.36690633,95752.0,95751.0,0.00083808]
[1739462969028,0.37952341,95752.0,95751.0,0.00083808]
[1739462969250,0.17367425,95752.0,95751.0,0.00083808]
[1739462969464,0.35890119,95752.0,95751.0,0.00083808]
[1739462969665,0.33032825,95752.0,95751.0,0.00083808]
[1739462969877,0.33532825,95752.0,95751.0,0.00083808]
[1739462970290,0.25832825,95752.0,95751.0,0.00083808]
[1739462970505,0.33672825,95752.0,95751.0,0.00083808]
[1739462971540,0.4392319,95752.0,95751.0,0.00083808]
[1739462971890,0.42961482,95752.0,95751.0,0.00094468]
[1739462972742,0.18384347,95752.0,95751.0,0.00094468]
[1739462972913,0.02718947,95752.0,95751.0,0.00094468]
[1739462973118,0.02718947,95752.0,95751.0,0.25344833]
[1739462973660,0.02218947,95752.0,95751.0,0.25344833]
[1739462973795,0.01918947,95752.0,95751.0,0.25344833]
[1739462973997,0.156653,95753.0,95752.0,0.15]
[1739462974312,0.15665,95755.0,95752.0,0.25250365]
[1739462974512,0.15665,95755.0,95753.0,0.10250365]
[1739462975500,0.156653,95753.0,95752.0,0.003]
[1739462975699,0.156653,95753.0,95751.0,0.00094468]
[1739462976146,0.14642478,95761.0,95751.0,0.00094468]
[1739462976384,0.14642478,95770.0,95751.0,0.00094468]
[1739462976536,0.156653,95753.0,95751.0,0.00094468]
[1739462977018,0.14632572,95770.0,95753.0,0.001]
[1739462977215,0.02045769,95774.0,95754.0,0.10250365]
[1739462977463,0.208834,95770.0,95754.0,0.10250365]
[1739462977794,0.02045769,95774.0,95751.0,0.00094468]
[1739462977795,0.14642478,95764.0,95751.0,0.00094468]
[1739462978117,0.156654,95753.0,95752.0,0.10250365]
[1739462978319,0.14642478,95761.0,95752.0,0.10250365]
[1739462978530,0.15042478,95770.0,95752.0,0.10250365]
[1739462978757,0.208838,95768.0,95753.0,0.20887]
[1739462978964,0.002,95770.0,95754.0,0.10250365]
[1739462979167,0.002,95764.0,95762.0,0.156638]
[1739462979369,0.002,95764.0,95763.0,0.25913965]
[1739462979583,0.002,95770.0,95763.0,0.10250365]
[1739462979980,0.14642478,95790.0,95763.0,0.10250365]
[1739462980192,0.003,95768.0,95763.0,0.10250365]
[1739462980349,0.003,95768.0,95763.0,0.25913965]
[1739462980758,0.003,95768.0,95764.0,0.156634]
[1739462980963,0.003,95768.0,95765.0,0.10250365]
[1739462981371,0.208794,95788.0,95765.0,0.10250365]